Cogmind - Beta 11.1 @@@ ROGUE MODE // 2022.05.02 @ 19:34:44 Player: Olga Result: Self-destructed Performance ------------- Evolutions (3) 1500 Regions Visited (6) 1200 Robots Destroyed (10) 50 Value Destroyed (202) 202 Prototype IDs (0) 0 Alien Tech Used (0) 0 Bonus (575) 575 TOTAL SCORE: 3527 Bonus ------- Pacifist 470 Follower Combat Kills 105 Cogmind --------- Core Integrity 647/700 Matter 183/300 Energy 22/100 System Corruption 1% Temperature Cool (0) Movement Hovering (56) Location -7/Factory Parts ------- > --- POWER (1) -------- (None) > --- PROPULSION (4) --- Hover Unit Improved Hover Unit > --- UTILITY (6) ------ Small Storage Unit Structural Scanner Sensor Array Improved Signal Interpreter Utility Shielding > --- WEAPON (2) ------- Power Maul > --- INVENTORY (8) ---- Improved Titanium Leg Advanced Weight Redist. System Hardened Medium Armor Plating Hacking Suite Katana Peak State ------------ > --- POWER ------------ Light Nuclear Core > --- PROPULSION ------- Hover Unit Hover Unit Hover Unit Airjet > --- UTILITY ---------- Small Storage Unit Structural Scanner Utility Shielding Medium Armor Plating > --- WEAPON ----------- Assault Rifle Grenade Launcher > --- INVENTORY -------- Light Nuclear Core Hover Unit Hover Unit Hover Unit Sensor Array Improved Signal Interpreter Katana [Rating: 17] Favorites ----------- Power Light Ion Engine Engine Light Ion Engine Power Core Light Nuclear Core Propulsion Hover Unit Leg Aluminum Leg Hover Unit Hover Unit Utility Small Storage Unit Device Structural Scanner Storage Small Storage Unit Processor Improved Signal Interpreter Protection Utility Shielding Weapon Assault Rifle Energy Gun Small Laser Ballistic Gun Assault Rifle Launcher Grenade Launcher Impact Weapon Power Maul Build | -11 -10 -10 -9 -9 -8 -7 ------- Run | Scr Mat Min Mat Min Mat Fac Slots Evolved 6 | . . . 2 . 2 2 Power . | . . . . . . . Propulsion 2 | . . . 1 . 1 . Utility 4 | . . . 1 . 1 2 Weapon . | . . . . . . . Parts Attached 27 | . 5 1 3 1 12 5 Power 3 | . 1 . . . 2 . Engine 1 | . 1 . . . . . Core 2 | . . . . . 2 . Reactor . | . . . . . . . Propulsion 12 | . 2 . 1 1 6 2 Treads . | . . . . . . . Leg 1 | . . . . . . 1 Wheel . | . . . . . . . Hover 11 | . 2 . 1 1 6 1 Flight . | . . . . . . . Utility 7 | . 1 . 2 . 2 2 Device 2 | . 1 . . . . 1 Storage . | . . . . . . . Processor 1 | . . . . . . 1 Hackware . | . . . . . . . Protection 4 | . . . 2 . 2 . Artifact . | . . . . . . . Weapon 5 | . 1 1 . . 2 1 Energy Gun 1 | . . 1 . . . . Energy Cannon . | . . . . . . . Ballistic Gun 1 | . 1 . . . . . Ballistic Cannon . | . . . . . . . Launcher 2 | . . . . . 2 . Special Weapon . | . . . . . . . Impact Weapon 1 | . . . . . . 1 Slashing Weapon . | . . . . . . . Piercing Weapon . | . . . . . . . Special Melee Weapon . | . . . . . . . Unidentified Prototypes . | . . . . . . . Parts Lost 12 | . . . . . 11 1 Power 3 | . . . . . 3 . Propulsion 6 | . . . . . 5 1 Utility 1 | . . . . . 1 . Weapon 2 | . . . . . 2 . Highest Loss Streak 10 | . . . . . 10 1 To Critical Strikes . | . . . . . . . Average Slot Usage (%) 82 | . 85 94 91 88 89 66 Engine 6 | . 14 14 11 11 5 . Leg 3 | . 18 . . . . 2 Hover 23 | . 9 28 33 33 32 17 Device 10 | . 4 14 11 11 9 15 Storage 9 | . 14 14 11 11 9 7 Processor 2 | . . . . . . 7 Protection 8 | . . . 11 11 15 7 Energy Gun 2 | . 10 8 3 . . . Ballistic Gun 7 | . 12 14 11 11 8 . Launcher 1 | . . . . . 7 . Impact Weapon 2 | . . . . . . 7 Naked Turns . | . . . . . . . Heaviest Build 24 | 13 14 12 18 18 24 11 Greatest Support 26 | 20 20 12 18 18 26 20 Greatest Overweight (x) 2 | . 2 . . . . . Average Overweight (x) . | . . . . . . . Largest Inventory Capacity 8 | . 8 8 8 8 8 8 Average Capacity 8 | . 8 8 8 8 8 8 Most Carried 8 | . 6 8 7 8 8 5 Average Carried 5 | . 5 7 6 7 7 3 Final Capacity 8 | 8 8 8 8 8 8 8 Final Carried 8 | 6 6 8 7 8 5 5 Class Distribution -------------------- 70% | Mutant 18% | Scout 11% | Assassin Dominant Class ---------------- Mutant | -10/Materials Mutant | -10/Mines Mutant | -9/Materials Mutant | -9/Mines Mutant | -8/Materials Scout | -7/Factory Resources | -11 -10 -10 -9 -9 -8 -7 ----------- Run | Scr Mat Min Mat Min Mat Fac Matter Collected 400 | 200 . 37 . 39 97 27 Remotely . | . . . . . . . Salvage Created 190 | . . . . . 163 27 Parts 15 | . . . . . 15 . Haulers Intercepted . | . . . . . . . Recyclers Shooed . | . . . . . . . Parts Field Recycled . | . . . . . . . Retrieved Matter . | . . . . . . . Parts Self-Destructed . | . . . . . . . Prevented . | . . . . . . . Kills | -11 -10 -10 -9 -9 -8 -7 ------- Run | Scr Mat Min Mat Min Mat Fac Combat Hostiles Destroyed 7 | . . . . . 7 . AOE 7 | . . . . . 7 . Classes Destroyed 4 | . . . . . 4 . Worker 1 | . . . . . 1 . Builder 2 | . . . . . 1 1 Swarmer 4 | . . . . . 4 . Grunt 3 | . . . . . 3 . Best Kill Streak 5 | . . . . . 5 1 Combat Bots Only 4 | . . . . . 4 . Max Kills in Single Turn 4 | . . . . . 4 1 Gunslinging . | . . . . . . . Exploded 3 | . . . . . 3 . Melee . | . . . . . . . Uniques/NPCs Destroyed . | . . . . . . . Combat | -11 -10 -10 -9 -9 -8 -7 -------- Run | Scr Mat Min Mat Min Mat Fac Damage Taken 1114 | . 18 19 . 32 942 103 Core 248 | . . 10 . 15 170 53 Absorbed by Shields . | . . . . . . . Redirected to Shielding 25 | . . . . . 25 . Core Remaining (%) 90 | 100 . 96 . 96 69 . Volleys Fired 9 | . . . 1 . 8 . Largest 2 | . . . 1 . 2 . Hottest 50 | . . . 20 . 50 . Shots Fired 17 | . . . 1 . 16 . Gun 9 | . . . 1 . 8 . Cannon . | . . . . . . . Launcher 8 | . . . . . 8 . Special . | . . . . . . . Kinetic 9 | . . . 1 . 8 . Thermal . | . . . . . . . Explosive 8 | . . . . . 8 . Electromagnetic . | . . . . . . . Robot Hit Streak 2 | . . . . . 2 . Robot Miss Streak 1 | . . . 1 . 1 . Penetration Max . | . . . . . . . Secondary Targets . | . . . . . . . Shots Hit Robots 4 | . . . . . 3 1 Core Hits 25 | . . . . . 25 . Critical Kills . | . . . . . . . Critical Parts Destroyed 1 | . . . . . . 1 Critical Strikes 1 | . . . . . . 1 Smash 1 | . . . . . . 1 Melee Attacks 1 | . . . . . . 1 Impact 1 | . . . . . . 1 Slashing . | . . . . . . . Piercing . | . . . . . . . Sneak Attacks 1 | . . . . . . 1 Combat Hostiles . | . . . . . . . Follow-up Attacks . | . . . . . . . Damage Inflicted 819 | . . . . . 709 110 Guns 24 | . . . . . 24 . Cannons . | . . . . . . . Explosions 685 | . . . . . 685 . Melee 110 | . . . . . . 110 Ramming . | . . . . . . . Kinetic 24 | . . . . . 24 . Thermal . | . . . . . . . Explosive 685 | . . . . . 685 . Electromagnetic . | . . . . . . . Impact 110 | . . . . . . 110 Slashing . | . . . . . . . Piercing . | . . . . . . . Highest Corruption 1 | . . . . . . 1 Average Corruption 1 | . . . . . . 1 Corruption Purged . | . . . . . . . Corruption Blocked . | . . . . . . . Overload Shots . | . . . . . . . Overflow Damage 114 | . . . . . 4 110 Projectiles . | . . . . . . . Explosions 4 | . . . . . 4 . Melee 110 | . . . . . . 110 Knockbacks . | . . . . . . . Impact . | . . . . . . . Kinetic . | . . . . . . . Secondary . | . . . . . . . Self-Inflicted Damage . | . . . . . . . Shots . | . . . . . . . Rammed . | . . . . . . . Targets Rammed . | . . . . . . . Kicked . | . . . . . . . Crushed . | . . . . . . . Highest Temperature 47 | . . . . . 47 . Average Temperature 18 | . . . . . 18 . Received Heat Transfer 546 | . . . . 18 504 24 Siege Activations . | . . . . . . . Robots Corrupted . | . . . . . . . Combat Hostiles . | . . . . . . . Parts Fried 1 | . . . . . . 1 Impact Corruptions 4 | . . . . . . 4 Robots Melted . | . . . . . . . Combat Hostiles . | . . . . . . . Parts Melted . | . . . . . . . Heat Transferred . | . . . . . . . Parts Sabotaged . | . . . . . . . Parts Stolen . | . . . . . . . Parts Stripped . | . . . . . . . Power Chain Reactions . | . . . . . . . Missiles Intercepted . | . . . . . . . Alert | -11 -10 -10 -9 -9 -8 -7 ------- Run | Scr Mat Min Mat Min Mat Fac Peak Influence 322 | . 15 5 46 47 322 208 Initial 123 | . . 5 1 17 18 123 Average 84 | . 13 5 12 20 158 128 Maximum Alert Level 1 | . . . . . 1 1 Low Security (%) 88 | . 100 100 100 100 56 95 Level 1 11 | . . . . . 43 4 Level 2 . | . . . . . . . Level 3 . | . . . . . . . Level 4 . | . . . . . . . Level 5 . | . . . . . . . High Security . | . . . . . . . Max Security . | . . . . . . . Squads Dispatched 2 | . . . 1 . 1 . Investigation 1 | . . . . . 1 . Extermination . | . . . . . . . Reinforcement 1 | . . . 1 . . . Assault . | . . . . . . . Garrison . | . . . . . . . Intercept . | . . . . . . . Searches Triggered . | . . . . . . . Construction Impeded . | . . . . . . . Haulers Reinforced . | . . . . . . . Active Scanning Responses . | . . . . . . . Cargo Convoy Interrupts . | . . . . . . . Stealth | -11 -10 -10 -9 -9 -8 -7 --------- Run | Scr Mat Min Mat Min Mat Fac Distress Signals 5 | . . . 1 . 3 1 Communications Jammed . | . . . . . . . Distress Signals . | . . . . . . . Times Spotted 44 | . 1 3 3 2 29 6 Peak Tracking Total 16 | . 1 3 5 2 16 6 Tactical Retreats 3 | . . . . 1 2 . Traps | -11 -10 -10 -9 -9 -8 -7 ------- Run | Scr Mat Min Mat Min Mat Fac Traps Triggered 1 | . 1 . . . . . Indirectly . | . . . . . . . Trap Hack Attempts . | . . . . . . . Triggered . | . . . . . . . Disarmed . | . . . . . . . Reprogrammed . | . . . . . . . Reused . | . . . . . . . Traps Extracted . | . . . . . . . Installed . | . . . . . . . Triggered . | . . . . . . . Machines | -11 -10 -10 -9 -9 -8 -7 ---------- Run | Scr Mat Min Mat Min Mat Fac Machines Disabled 1 | . . . . . 1 . Max in Single Turn . | . . . . . . . Machines Sabotaged . | . . . . . . . Garrisons Compromised . | . . . . . . . Overloaded Fab Kills . | . . . . . . . Hacking | -11 -10 -10 -9 -9 -8 -7 --------- Run | Scr Mat Min Mat Min Mat Fac Machines Accessed 4 | . 2 . . . 1 1 Terminals 4 | . 2 . . . 1 1 Fabricators . | . . . . . . . Repair Stations . | . . . . . . . Recycling Units . | . . . . . . . Scanalyzers . | . . . . . . . Garrison Access . | . . . . . . . Total Hacks 12 | . 7 . . . 2 3 Successful 5 | . 3 . . . 1 1 Failed 7 | . 4 . . . 1 2 Catastrophic . | . . . . . . . Database Lockouts . | . . . . . . . Manual 2 | . . . . . 2 . Terminals 12 | . 7 . . . 2 3 Fabricators . | . . . . . . . Repair Stations . | . . . . . . . Recycling Units . | . . . . . . . Scanalyzers . | . . . . . . . Garrison Access . | . . . . . . . Terminal Hacks 5 | . 3 . . . 1 1 Emergency Access Points 2 | . 2 . . . . . Terminal Index 1 | . . . . . . 1 Zone Layout 2 | . 1 . . . 1 . Fabricator Hacks . | . . . . . . . Repair Station Hacks . | . . . . . . . Recycling Unit Hacks . | . . . . . . . Scanalyzer . | . . . . . . . Garrison Access Hacks . | . . . . . . . Unauthorized Hacks . | . . . . . . . Terminals . | . . . . . . . Fabricators . | . . . . . . . Repair Stations . | . . . . . . . Recycling Units . | . . . . . . . Scanalyzers . | . . . . . . . Garrison Access . | . . . . . . . Data Cores Recovered . | . . . . . . . Used . | . . . . . . . Hacking Detections 3 | . 2 . . . . 1 Full Trace Events . | . . . . . . . Feedback Events . | . . . . . . . Feedback Blocked . | . . . . . . . Robot Schematics Acquired . | . . . . . . . Robots Built . | . . . . . . . Authchips . | . . . . . . . Time . | . . . . . . . Total Robot Build Rating . | . . . . . . . Part Schematics Acquired . | . . . . . . . Parts Built . | . . . . . . . Authchips . | . . . . . . . Time . | . . . . . . . Total Part Build Rating . | . . . . . . . Parts Repaired . | . . . . . . . Time . | . . . . . . . Parts Recycled . | . . . . . . . Recycled Matter . | . . . . . . . Retrieved Matter . | . . . . . . . Retrieved Components . | . . . . . . . Parts Scanalyzed . | . . . . . . . Part Schematics Acquired . | . . . . . . . Parts Damaged . | . . . . . . . Bothacking | -11 -10 -10 -9 -9 -8 -7 ------------ Run | Scr Mat Min Mat Min Mat Fac Used RIF Installer . | . . . . . . . Robots Hacked . | . . . . . . . Non-combat . | . . . . . . . Combat . | . . . . . . . Robot Hacks Applied . | . . . . . . . Relay Couplers Released . | . . . . . . . Fabnet Peak Effective % . | . . . . . . . Robots Rewired . | . . . . . . . Allies Hacked . | . . . . . . . Hacks Repelled . | . . . . . . . Allies | -11 -10 -10 -9 -9 -8 -7 -------- Run | Scr Mat Min Mat Min Mat Fac Total Allies 4 | . . . . 4 . . Largest Group 4 | . . . . 4 4 . Highest-Rated Group 71 | . . . . 71 71 . Highest-Rated Ally 31 | . . . . 31 31 . Total Orders . | . . . . . . . Ally Attacks 32 | . . . . . 32 . Total Damage 391 | . . . . . 391 . Kills 3 | . . . . . 3 . Allies Corrupted . | . . . . . . . Allies Melted . | . . . . . . . Intel | -11 -10 -10 -9 -9 -8 -7 ------- Run | Scr Mat Min Mat Min Mat Fac Robot Analysis Total . | . . . . . . . Derelict Logs Recovered 2 | . . 1 . 1 . . Drone Launches . | . . . . . . . Drone Recoveries . | . . . . . . . Exploration | -11 -10 -10 -9 -9 -8 -7 ------------- Run | Scr Mat Min Mat Min Mat Fac Turns Passed 743 | . 123 53 68 94 184 221 Spaces Moved 975 | 1 109 88 118 149 259 251 Core . | . . . . . . . Treads . | . . . . . . . Legs 131 | 1 68 . . . . 62 Wheels . | . . . . . . . Hover 844 | . 41 88 118 149 259 189 Flight . | . . . . . . . Fastest Speed 48 | 120 56 56 52 52 48 56 Average Speed 62 | 120 97 56 52 52 49 74 Slowest Speed 180 | 120 180 56 52 52 56 130 Overloaded Moves . | . . . . . . . Propulsion Burnouts . | . . . . . . . Robots Hopped . | . . . . . . . Cave-ins Triggered . | . . . . . . . Exploration Rate (%) 25 | 2 25 37 23 52 31 8 Regions Visited 6 Branch Regions 2 Pre-discovered Areas 1 | . . 1 . . . . Known Exits Taken 1 | . . . . . 1 . Unknown Exits Taken 5 | 1 1 1 1 1 . . Scrap Searched 2 | . . 1 . 1 . . Spaces Dug . | . . . . . . . Terrain Destroyed 34 | . . . . . 34 . Melee . | . . . . . . . Projectile . | . . . . . . . AOE 34 | . . . . . 34 . Terrain Rammed . | . . . . . . . Walls Destroyed . | . . . . . . . Machines Disabled . | . . . . . . . Actions | -11 -10 -10 -9 -9 -8 -7 --------- Run | Scr Mat Min Mat Min Mat Fac Total 1090 | . 127 90 123 165 302 283 Wait 45 | . . . . 13 9 23 Move 969 | . 108 87 117 148 258 251 Hop . | . . . . . . . Pick Up 20 | . 5 2 1 2 8 2 Fast Attach 7 | . 4 1 . . . 2 Attach 14 | . . . 2 . 9 3 Detach 2 | . . . . . 1 1 Swap 6 | . 1 . 1 1 3 . Drop 17 | . 9 . 1 1 6 . Fire 9 | . . . 1 . 8 . Melee 1 | . . . . . . 1 Ram . | . . . . . . . Kick . | . . . . . . . Crush . | . . . . . . . Escape Stasis . | . . . . . . . Rewire . | . . . . . . . Trap . | . . . . . . . Miscellaneous . | . . . . . . . Route ------- -11/Scrapyard -10/Materials -10/Mines -9/Materials -9/Mines -8/Materials -7/Factory History --------- Turn | Location | Event 1 | -11/Scrapyard | Discovered new exit (range 0) 1 | -11/Scrapyard | Entered Materials 72 | -10/Materials | Discovered new exit (range 15) 124 | -10/Materials | Entered Mines 128 | -10/Mines | Learned location of Zion (-6) 162 | -10/Mines | Found a hidden stash of uninstalled traps 175 | -10/Mines | Discovered new exit (range 4) 177 | -10/Mines | Entered Materials 177 | -9/Materials | Evolved 2 slots: Propulsion x1, Utility x1 243 | -9/Materials | Discovered new exit (range 6) 245 | -9/Materials | Entered Mines 248 | -9/Mines | Received a Mining Laser from a helpful Derelict 291 | -9/Mines | Learned location of 1 exit from Materials 304 | -9/Mines | Build established: Mutant 317 | -9/Mines | Assisted by bots powering up and referring to "LRC-V3" 322 | -9/Mines | Discovered new exit (range 13) 339 | -9/Mines | Entered Materials 339 | -8/Materials | Accompanied by 4 allies 339 | -8/Materials | Evolved 2 slots: Propulsion x1, Utility x1 340 | -8/Materials | Identified exit to Factory 523 | -8/Materials | Entered Factory 523 | -7/Factory | Evolved 2 slots: Utility x2 541 | -7/Factory | Lost 10 parts (2p5n1u2w) 744 | -7/Factory | Self-destructed Last Messages --------------- 00550_ Acquired Imp. Titanium Leg. 00607_ K-01 Serf collects debris. 00636_ K-01 Serf cleans the Subcomponent Replicator. 00643_ Acquired Hrd. Medium Armor Plating. 00664_ K-01 Serf cleans the Subcomponent Replicator. 00671_ Acquired Imp. Hover Unit. 00718_ W-25 Informer sends out distress signal. 00719_ ALERT: All DSF locations entering lockdown mode. 00726_ Acquired Hacking Suite. 00734_ Hover Unit destroyed. 00741_ Sneak attack on U-05 Engineer. 00741_ U-05 Engineer suffers critical hit (Smash). 00741_ Destroyed Wheel. 00741_ Destroyed Terrain Scan Processor. 00741_ Destroyed Structural Scanner. 00741_ Destroyed Lgt. Ion Engine. 00741_ U-05 Engineer system corrupted by crushing effect. 00741_ Wheel fried. 00741_ U-05 Engineer destroyed. 00742_ Acquired 27 matter. Map ----- +----------------------------------------------------+ | ???????????????????????????????????????##+????# | | ??????????????????????????????????????? ????#! | | ??????????????????????????????????????? ????# [ | | ???????????????????????????????????????? ????# | | ???????????????????????????????????????? #???# = | | ???????????????????????????????????????? #???# | | ???????????????????????????###########+## #???# | | ???????????????????????????# ]! + #???# | | ???????????????????????????# """ ! # #???# | | ???????????????????????????# """ !! # ######## | | ???????????????????????????# """ # | | ???????????????????????????# # | | ???????????????????????#???# """ """ + | | ???????????????????????# ??# """ """ # | | ???????????????????????# ??# """ """ # | | ??????????????????????? ?## ####+##### | | ???????????????????????# ?# " F" ## #? | | ???????????????????????# ?## ! """" ## #? | | ???????????????????????# ??# ## #? | | ???????????????????????# ??####+##+####### % #? | | ???????????/############ ######Y #?????# #? | | ?????????? uk p #?????# """" #? | | ?????????? ###???# """" #? | | ?????????? g + """" #? | | ?????????? g ## T######### """" +? | | ?????????? t r u @ #####???????# """? # | | ???????????##############/####???????????# ?????# | | ???????????????????????# ??????????????#???????? | | ???????????????????????# k?????????????????????? | | ???????????????????????# ""?????????????????????? | | ???????????????????????# ""??r??????????????????? | | ???????????????????????# """?k??????????????????? | | ???????????????????????#! """????????????????????? | | ???????????????????????# "??????????????????????? | | ???????????????????????# "???k??????????????????? | | ???????????????????????# ??????????????????????? | | ???????????????????????# ??????????????????????? | | ???????????????????????# ???????????????????????? | | ???????????????????????? ???????????????????????? | | ????????????????????????##???????????????????????? | | ?????????????????????????????????????????????????? | | ?????????????????????????????????????????????????? | | ?????????????????????????????????????????????????? | | ?????????????????????????????????????????????????? | | ?????????????????????????????????????????????????? | | ?????????????????????????????????????????????????? | | ?????????????????????????????????????????????????? | | ?????????????????????????????????????????????????? | | ?????????????????????????????????????????????????? | | ?????????????????????????????????????????????????? | +----------------------------------------------------+ Best States ------------- Heat Dissipation 34 Energy Generation 14 Energy Capacity 250 Matter Stores 300 Matter Capacity 300 Sight Range 16 Robot Scan Range 14 Terrain Scan Density 10 Armor Coverage 225 Utility Shielding 33 Evasion (%) 55 Item Schematics ----------------- None Robot Schematics ------------------ None Fabricated ------------ Nothing Alien Tech Used ----------------- None Achievements -------------- None Challenges ------------ None Game ------ Seed DroneResetEngine Manual? 0 Play Time 00:17:07 Cumulative 163.7 hours Start 2022.05.02 @ 19:20:20 End 2022.05.02 @ 19:34:44 Sessions 1 Manual Loads 0 Difficulty Rogue Special Mode None Game No. 266 Rogue 265 Adventurer 0 Explorer 1 Win Type - Total 7 Types 7/0/0/0/0/0/0/0/0 Lore% 61 Gallery% 63 Achievement% 53 Wizard Run 0 Options --------- ASCII 1 Keyboard 0 Movement Vi Keybinds 0 Fullscreen 1 Font 18/SmallcapsGlow Map View 76x50 Tactical HUD 1 Map Filters NONE Filters NONE Steam 1 RUN: 49150f4f-ab79-44bf-bcfc-2ddf1d423274